Workbook

Sheet CLASSE A
A1: SUPERNOVA ROCKETRY
A3: LEITURAS DO ALTÍMETRO ALTTINY SRE 1.1
A6: ENDEREÇO | B6: LEITURA | C6: NÍVEL DO MAR | D6: NÍVEL DO MAR CORRIGIDO | E6: NÍVEL SOLO | L6: DADOS OBTIDOS NO MONITOR SERIAL DO ARDUINO
A7: 0 | B7: 7989 | C7: =B7 -> 7989 | D7: =IF(C7>1000,C7/10,C7) -> 798.9 | E7: =D7-D$7 -> 0 | L7: 0 7989
A8: 2 | B8: 7982 | C8: =B8 -> 7982 | D8: =IF(C8>1000,C8/10,C8) -> 798.2 | E8: =D8-D$7 -> -0.7 | L8: 2 7982
A9: 4 | B9: 7986 | C9: 7986 | D9: 798.6 | E9: -0.3 | L9: 4 7986
A10: 6 | B10: 7987 | C10: 7987 | D10: 798.7 | E10: -0.2 | L10: 6 7987
A11: 8 | B11: 7980 | C11: 7980 | D11: 798 | E11: -0.9 | L11: 8 7980
A12: 10 | B12: 7981 | C12: 7981 | D12: 798.1 | E12: -0.8 | L12: 10 7981
A13: 12 | B13: 7984 | C13: 7984 | D13: 798.4 | E13: -0.5 | L13: 12 7984
A14: 14 | B14: 7984 | C14: 7984 | D14: 798.4 | E14: -0.5 | L14: 14 7984
A15: 16 | B15: 7982 | C15: 7982 | D15: 798.2 | E15: -0.7 | L15: 16 7982
A16: 18 | B16: 7981 | C16: 7981 | D16: 798.1 | E16: -0.8 | L16: 18 7981
A17: 20 | B17: 7983 | C17: 7983 | D17: 798.3 | E17: -0.6 | L17: 20 7983
A18: 22 | B18: 7979 | C18: 7979 | D18: 797.9 | E18: -1 | L18: 22 7979
A19: 24 | B19: 7980 | C19: 7980 | D19: 798 | E19: -0.9 | L19: 24 7980
A20: 26 | B20: 7975 | C20: 7975 | D20: 797.5 | E20: -1.4 | L20: 26 7975
A21: 28 | B21: 7977 | C21: 7977 | D21: 797.7 | E21: -1.2 | L21: 28 7977
A22: 30 | B22: 7975 | C22: 7975 | D22: 797.5 | E22: -1.4 | L22: 30 7975
A23: 32 | B23: 7984 | C23: 7984 | D23: 798.4 | E23: -0.5 | L23: 32 7984
A24: 34 | B24: 7981 | C24: 7981 | D24: 798.1 | E24: =D24-D$7 -> -0.8 | L24: 34 7981
A25: 36 | B25: 7980 | C25: 7980 | D25: 798 | E25: -0.9 | L25: 36 7980
A26: 38 | B26: 7987 | C26: 7987 | D26: 798.7 | E26: -0.2 | L26: 38 7987
A27: 40 | B27: 7977 | C27: 7977 | D27: 797.7 | E27: -1.2 | L27: 40 7977
A28: 42 | B28: 7978 | C28: 7978 | D28: 797.8 | E28: -1.1 | L28: 42 7978
A29: 44 | B29: 7983 | C29: 7983 | D29: 798.3 | E29: -0.6 | L29: 44 7983
A30: 46 | B30: 7979 | C30: 7979 | D30: 797.9 | E30: -1 | L30: 46 7979
A31: 48 | B31: 7979 | C31: 7979 | D31: 797.9 | E31: -1 | L31: 48 7979
A32: 50 | B32: 7982 | C32: 7982 | D32: 798.2 | E32: -0.7 | L32: 50 7982
A33: 52 | B33: 7977 | C33: 7977 | D33: 797.7 | E33: -1.2 | L33: 52 7977
A34: 54 | B34: 7981 | C34: 7981 | D34: 798.1 | E34: -0.8 | L34: 54 7981
A35: 56 | B35: 7984 | C35: 7984 | D35: 798.4 | E35: -0.5 | L35: 56 7984
A36: 58 | B36: 7984 | C36: 7984 | D36: 798.4 | E36: -0.5 | L36: 58 7984
A37: 60 | B37: 7986 | C37: 7986 | D37: 798.6 | E37: -0.3 | L37: 60 7986
A38: 62 | B38: 7982 | C38: 7982 | D38: 798.2 | E38: -0.7 | L38: 62 7982
A39: 64 | B39: 7983 | C39: 7983 | D39: 798.3 | E39: -0.6 | L39: 64 7983
A40: 66 | B40: 7983 | C40: 7983 | D40: 798.3 | E40: =D40-D$7 -> -0.6 | L40: 66 7983
A41: 68 | B41: 7980 | C41: 7980 | D41: 798 | E41: -0.9 | L41: 68 7980
A42: 70 | B42: 7981 | C42: 7981 | D42: 798.1 | E42: -0.8 | L42: 70 7981
A43: 72 | B43: 7979 | C43: 7979 | D43: 797.9 | E43: -1 | L43: 72 7979
A44: 74 | B44: 7982 | C44: 7982 | D44: 798.2 | E44: -0.7 | L44: 74 7982
A45: 76 | B45: 7980 | C45: 7980 | D45: 798 | E45: -0.9 | L45: 76 7980
A46: 78 | B46: 7979 | C46: 7979 | D46: 797.9 | E46: -1 | L46: 78 7979
A47: 80 | B47: 7982 | C47: 7982 | D47: 798.2 | E47: -0.7 | L47: 80 7982
A48: 82 | B48: 7984 | C48: 7984 | D48: 798.4 | E48: -0.5 | L48: 82 7984
A49: 84 | B49: 7978 | C49: 7978 | D49: 797.8 | E49: -1.1 | L49: 84 7978
A50: 86 | B50: 7978 | C50: 7978 | D50: 797.8 | E50: -1.1 | L50: 86 7978
A51: 88 | B51: 7984 | C51: 7984 | D51: 798.4 | E51: -0.5 | L51: 88 7984
A52: 90 | B52: 7984 | C52: 7984 | D52: 798.4 | E52: -0.5 | L52: 90 7984
A53: 92 | B53: 7978 | C53: 7978 | D53: 797.8 | E53: -1.1 | L53: 92 7978
A54: 94 | B54: 7983 | C54: 7983 | D54: 798.3 | E54: -0.6 | L54: 94 7983
A55: 96 | B55: 7981 | C55: 7981 | D55: 798.1 | E55: -0.8 | L55: 96 7981
A56: 98 | B56: 7983 | C56: 7983 | D56: 798.3 | E56: =D56-D$7 -> -0.6 | L56: 98 7983
A57: 100 | B57: 7985 | C57: 7985 | D57: 798.5 | E57: -0.4 | L57: 100 7985
A58: 102 | B58: 7979 | C58: 7979 | D58: 797.9 | E58: -1 | L58: 102 7979
A59: 104 | B59: 7983 | C59: 7983 | D59: 798.3 | E59: -0.6 | L59: 104 7983
A60: 106 | B60: 7982 | C60: 7982 | D60: 798.2 | E60: -0.7 | L60: 106 7982
A61: 108 | B61: 7986 | C61: 7986 | D61: 798.6 | E61: -0.3 | L61: 108 7986
A62: 110 | B62: 7983 | C62: 7983 | D62: 798.3 | E62: -0.6 | L62: 110 7983
A63: 112 | B63: 7981 | C63: 7981 | D63: 798.1 | E63: -0.8 | L63: 112 7981
A64: 114 | B64: 7994 | C64: 7994 | D64: 799.4 | E64: 0.5 | L64: 114 7994
A65: 116 | B65: 802 | C65: 802 | D65: 802 | E65: 3.1 | L65: 116 802
A66: 118 | B66: 8128 | C66: 8128 | D66: 812.8 | E66: 13.9 | L66: 118 8128
A67: 120 | B67: 8175 | C67: 8175 | D67: 817.5 | E67: 18.6 | L67: 120 8175
A68: 122 | B68: 8214 | C68: 8214 | D68: 821.4 | E68: 22.5 | L68: 122 8214
A69: 124 | B69: 8246 | C69: 8246 | D69: 824.6 | E69: 25.7 | L69: 124 8246
A70: 126 | B70: 8277 | C70: 8277 | D70: 827.7 | E70: 28.8 | L70: 126 8277
A71: 128 | B71: 826 | C71: 826 | D71: 826 | E71: 27.1 | L71: 128 826
A72: 130 | B72: 8344 | C72: =B72 -> 8344 | D72: =IF(C72>1000,C72/10,C72) -> 834.4 | E72: =D72-D$7 -> 35.5 | L72: 130 8344
A73: 132 | B73: 8349 | C73: 8349 | D73: 834.9 | E73: 36 | L73: 132 8349
A74: 134 | B74: 8381 | C74: 8381 | D74: 838.1 | E74: 39.2 | L74: 134 8381
A75: 136 | B75: 8386 | C75: 8386 | D75: 838.6 | E75: 39.7 | L75: 136 8386
A76: 138 | B76: 8413 | C76: 8413 | D76: 841.3 | E76: 42.4 | L76: 138 8413
A77: 140 | B77: 8424 | C77: 8424 | D77: 842.4 | E77: 43.5 | L77: 140 8424
A78: 142 | B78: 8428 | C78: 8428 | D78: 842.8 | E78: 43.9 | L78: 142 8428
A79: 144 | B79: 8433 | C79: 8433 | D79: 843.3 | E79: 44.4 | L79: 144 8433
A80: 146 | B80: 8447 | C80: 8447 | D80: 844.7 | E80: 45.8 | L80: 146 8447
A81: 148 | B81: 8456 | C81: 8456 | D81: 845.6 | E81: 46.7 | L81: 148 8456
A82: 150 | B82: 8447 | C82: 8447 | D82: 844.7 | E82: 45.8 | L82: 150 8447
A83: 152 | B83: 8441 | C83: 8441 | D83: 844.1 | E83: 45.2 | L83: 152 8441
A84: 154 | B84: 8436 | C84: 8436 | D84: 843.6 | E84: 44.7 | L84: 154 8436
A85: 156 | B85: 8434 | C85: 8434 | D85: 843.4 | E85: 44.5 | L85: 156 8434
A86: 158 | B86: 8427 | C86: 8427 | D86: 842.7 | E86: 43.8 | L86: 158 8427
A87: 160 | B87: 849 | C87: 849 | D87: 849 | E87: 50.1 | L87: 160 849
A88: 162 | B88: 845 | C88: 845 | D88: 845 | E88: =D88-D$7 -> 46.1 | L88: 162 845
A89: 164 | B89: 8392 | C89: 8392 | D89: 839.2 | E89: 40.3 | L89: 164 8392
A90: 166 | B90: 8381 | C90: 8381 | D90: 838.1 | E90: 39.2 | L90: 166 8381
A91: 168 | B91: 8375 | C91: 8375 | D91: 837.5 | E91: 38.6 | L91: 168 8375
A92: 170 | B92: 8359 | C92: 8359 | D92: 835.9 | E92: 37 | L92: 170 8359
A93: 172 | B93: 8334 | C93: 8334 | D93: 833.4 | E93: 34.5 | L93: 172 8334
A94: 174 | B94: 8324 | C94: 8324 | D94: 832.4 | E94: 33.5 | L94: 174 8324
A95: 176 | B95: 8311 | C95: 8311 | D95: 831.1 | E95: 32.2 | L95: 176 8311
A96: 178 | B96: 8391 | C96: 8391 | D96: 839.1 | E96: 40.2 | L96: 178 8391
A97: 180 | B97: 8282 | C97: 8282 | D97: 828.2 | E97: 29.3 | L97: 180 8282
A98: 182 | B98: 8261 | C98: 8261 | D98: 826.1 | E98: 27.2 | L98: 182 8261
A99: 184 | B99: 8263 | C99: 8263 | D99: 826.3 | E99: 27.4 | L99: 184 8263
A100: 186 | B100: 8230 | C100: 8230 | D100: 823 | E100: 24.1 | L100: 186 8230
A101: 188 | B101: 829 | C101: 829 | D101: 829 | E101: 30.1 | L101: 188 829
A102: 190 | B102: 8215 | C102: 8215 | D102: 821.5 | E102: 22.6 | L102: 190 8215
A103: 192 | B103: 8278 | C103: 8278 | D103: 827.8 | E103: 28.9 | L103: 192 8278
A104: 194 | B104: 8174 | C104: 8174 | D104: 817.4 | E104: =D104-D$7 -> 18.5 | L104: 194 8174
A105: 196 | B105: 8166 | C105: 8166 | D105: 816.6 | E105: 17.7 | L105: 196 8166
A106: 198 | B106: 8148 | C106: 8148 | D106: 814.8 | E106: 15.9 | L106: 198 8148
A107: 200 | B107: 8147 | C107: 8147 | D107: 814.7 | E107: 15.8 | L107: 200 8147
A108: 202 | B108: 8126 | C108: 8126 | D108: 812.6 | E108: 13.7 | L108: 202 8126
A109: 204 | B109: 812 | C109: 812 | D109: 812 | E109: 13.1 | L109: 204 812
A110: 206 | B110: 800 | C110: 800 | D110: 800 | E110: 1.1 | L110: 206 800
A111: 208 | B111: 8081 | C111: 8081 | D111: 808.1 | E111: 9.2 | L111: 208 8081
A112: 210 | B112: 8051 | C112: 8051 | D112: 805.1 | E112: 6.2 | L112: 210 8051
A113: 212 | B113: 8037 | C113: 8037 | D113: 803.7 | E113: 4.8 | L113: 212 8037
A114: 214 | B114: 8038 | C114: 8038 | D114: 803.8 | E114: 4.9 | L114: 214 8038
A115: 216 | B115: 8036 | C115: 8036 | D115: 803.6 | E115: 4.7 | L115: 216 8036
A116: 218 | B116: 8035 | C116: 8035 | D116: 803.5 | E116: 4.6 | L116: 218 8035
A117: 220 | B117: 8035 | C117: 8035 | D117: 803.5 | E117: 4.6 | L117: 220 8035
A118: 222 | B118: 8032 | C118: 8032 | D118: 803.2 | E118: 4.3 | L118: 222 8032
A119: 224 | B119: 8021 | C119: 8021 | D119: 802.1 | E119: 3.2 | L119: 224 8021
A120: 226 | B120: 8019 | C120: 8019 | D120: 801.9 | E120: =D120-D$7 -> 3 | L120: 226 8019
A121: 228 | B121: 8014 | C121: 8014 | D121: 801.4 | E121: 2.5 | L121: 228 8014
A122: 230 | B122: 8015 | C122: 8015 | D122: 801.5 | E122: 2.6 | L122: 230 8015
A123: 232 | B123: 807 | C123: 807 | D123: 807 | E123: 8.1 | L123: 232 807
A124: 234 | B124: 805 | C124: 805 | D124: 805 | E124: 6.1 | L124: 234 805
A125: 236 | B125: 7997 | C125: 7997 | D125: 799.7 | E125: 0.8 | L125: 236 7997
A126: 238 | B126: 7991 | C126: 7991 | D126: 799.1 | E126: 0.2 | L126: 238 7991
A127: 240 | B127: 7983 | C127: 7983 | D127: 798.3 | E127: -0.6 | L127: 240 7983
A128: 242 | B128: 7983 | C128: 7983 | D128: 798.3 | E128: -0.6 | L128: 242 7983
A129: 244 | B129: 7970 | C129: 7970 | D129: 797 | E129: -1.9 | L129: 244 7970
A130: 246 | B130: 7969 | C130: 7969 | D130: 796.9 | E130: -2 | L130: 246 7969
A131: 248 | B131: 7971 | C131: 7971 | D131: 797.1 | E131: -1.8 | L131: 248 7971
A132: 250 | B132: 7972 | C132: 7972 | D132: 797.2 | E132: -1.7 | L132: 250 7972
A133: 252 | B133: 7969 | C133: 7969 | D133: 796.9 | E133: -2 | L133: 252 7969
A134: 254 | B134: 7967 | C134: 7967 | D134: 796.7 | E134: -2.2 | L134: 254 7967
A135: 256 | B135: 7968 | C135: 7968 | D135: 796.8 | E135: -2.1 | L135: 256 7968
A136: 258 | B136: 7971 | C136: =B136 -> 7971 | D136: =IF(C136>1000,C136/10,C136) -> 797.1 | E136: =D136-D$7 -> -1.8 | L136: 258 7971
A137: 260 | B137: 7964 | C137: 7964 | D137: 796.4 | E137: -2.5 | L137: 260 7964
A138: 262 | B138: 7972 | C138: 7972 | D138: 797.2 | E138: -1.7 | L138: 262 7972
A139: 264 | B139: 7969 | C139: 7969 | D139: 796.9 | E139: -2 | L139: 264 7969
A140: 266 | B140: 7969 | C140: 7969 | D140: 796.9 | E140: -2 | L140: 266 7969
A141: 268 | B141: 7973 | C141: 7973 | D141: 797.3 | E141: -1.6 | L141: 268 7973
A142: 270 | B142: 7970 | C142: 7970 | D142: 797 | E142: -1.9 | L142: 270 7970
A143: 272 | B143: 7968 | C143: 7968 | D143: 796.8 | E143: -2.1 | L143: 272 7968
A144: 274 | B144: 7966 | C144: 7966 | D144: 796.6 | E144: -2.3 | L144: 274 7966
A145: 276 | B145: 7970 | C145: 7970 | D145: 797 | E145: -1.9 | L145: 276 7970
A146: 278 | B146: 7965 | C146: 7965 | D146: 796.5 | E146: -2.4 | L146: 278 7965
A147: 280 | B147: 7971 | C147: 7971 | D147: 797.1 | E147: -1.8 | L147: 280 7971
A148: 282 | B148: 7969 | C148: 7969 | D148: 796.9 | E148: -2 | L148: 282 7969
A149: 284 | B149: 7962 | C149: 7962 | D149: 796.2 | E149: -2.7 | L149: 284 7962
A150: 286 | B150: 7972 | C150: 7972 | D150: 797.2 | E150: -1.7 | L150: 286 7972
A151: 288 | B151: 7966 | C151: 7966 | D151: 796.6 | E151: -2.3 | L151: 288 7966
A152: 290 | B152: 7975 | C152: 7975 | D152: 797.5 | E152: =D152-D$7 -> -1.4 | L152: 290 7975
A153: 292 | B153: 7968 | C153: 7968 | D153: 796.8 | E153: -2.1 | L153: 292 7968
A154: 294 | B154: 7971 | C154: 7971 | D154: 797.1 | E154: -1.8 | L154: 294 7971
A155: 296 | B155: 7968 | C155: 7968 | D155: 796.8 | E155: -2.1 | L155: 296 7968
A156: 298 | B156: 7971 | C156: 7971 | D156: 797.1 | E156: -1.8 | L156: 298 7971
A157: 300 | B157: 7968 | C157: 7968 | D157: 796.8 | E157: -2.1 | L157: 300 7968
A158: 302 | B158: 7967 | C158: 7967 | D158: 796.7 | E158: -2.2 | L158: 302 7967
A159: 304 | B159: 7977 | C159: 7977 | D159: 797.7 | E159: -1.2 | L159: 304 7977
A160: 306 | B160: 7978 | C160: 7978 | D160: 797.8 | E160: -1.1 | L160: 306 7978
A161: 308 | B161: 7972 | C161: 7972 | D161: 797.2 | E161: -1.7 | L161: 308 7972
A162: 310 | B162: 7974 | C162: 7974 | D162: 797.4 | E162: -1.5 | L162: 310 7974
A163: 312 | B163: 7969 | C163: 7969 | D163: 796.9 | E163: -2 | L163: 312 7969
A164: 314 | B164: 7966 | C164: 7966 | D164: 796.6 | E164: -2.3 | L164: 314 7966
A165: 316 | B165: 7966 | C165: 7966 | D165: 796.6 | E165: -2.3 | L165: 316 7966
A166: 318 | B166: 7969 | C166: 7969 | D166: 796.9 | E166: -2 | L166: 318 7969
A167: 320 | B167: 7962 | C167: 7962 | D167: 796.2 | E167: -2.7 | L167: 320 7962
A168: 322 | B168: 7963 | C168: 7963 | D168: 796.3 | E168: =D168-D$7 -> -2.6 | L168: 322 7963
A169: 324 | B169: 7969 | C169: 7969 | D169: 796.9 | E169: -2 | L169: 324 7969
A170: 326 | B170: 7971 | C170: 7971 | D170: 797.1 | E170: -1.8 | L170: 326 7971
A171: 328 | B171: 7969 | C171: 7969 | D171: 796.9 | E171: -2 | L171: 328 7969
A172: 330 | B172: 7971 | C172: 7971 | D172: 797.1 | E172: -1.8 | L172: 330 7971
A173: 332 | B173: 7971 | C173: 7971 | D173: 797.1 | E173: -1.8 | L173: 332 7971
A174: 334 | B174: 7975 | C174: 7975 | D174: 797.5 | E174: -1.4 | L174: 334 7975
A175: 336 | B175: 7971 | C175: 7971 | D175: 797.1 | E175: -1.8 | L175: 336 7971
A176: 338 | B176: 7971 | C176: 7971 | D176: 797.1 | E176: -1.8 | L176: 338 7971
A177: 340 | B177: 7963 | C177: 7963 | D177: 796.3 | E177: -2.6 | L177: 340 7963
A178: 342 | B178: 7967 | C178: 7967 | D178: 796.7 | E178: -2.2 | L178: 342 7967
A179: 344 | B179: 7969 | C179: 7969 | D179: 796.9 | E179: -2 | L179: 344 7969
A180: 346 | B180: 7968 | C180: 7968 | D180: 796.8 | E180: -2.1 | L180: 346 7968
A181: 348 | B181: 7968 | C181: 7968 | D181: 796.8 | E181: -2.1 | L181: 348 7968
A182: 350 | B182: 7963 | C182: 7963 | D182: 796.3 | E182: -2.6 | L182: 350 7963
A183: 352 | B183: 7969 | C183: 7969 | D183: 796.9 | E183: -2 | L183: 352 7969
A184: 354 | B184: 7964 | C184: 7964 | D184: 796.4 | E184: =D184-D$7 -> -2.5 | L184: 354 7964
A185: 356 | B185: 7969 | C185: 7969 | D185: 796.9 | E185: -2 | L185: 356 7969
A186: 358 | B186: 7971 | C186: 7971 | D186: 797.1 | E186: -1.8 | L186: 358 7971
A187: 360 | B187: 7970 | C187: 7970 | D187: 797 | E187: -1.9 | L187: 360 7970
A188: 362 | B188: 7973 | C188: 7973 | D188: 797.3 | E188: -1.6 | L188: 362 7973
A189: 364 | B189: 7965 | C189: 7965 | D189: 796.5 | E189: -2.4 | L189: 364 7965
A190: 366 | B190: 7964 | C190: 7964 | D190: 796.4 | E190: -2.5 | L190: 366 7964
A191: 368 | B191: 7968 | C191: 7968 | D191: 796.8 | E191: -2.1 | L191: 368 7968
A192: 370 | B192: 7969 | C192: 7969 | D192: 796.9 | E192: -2 | L192: 370 7969
A193: 372 | B193: 7970 | C193: 7970 | D193: 797 | E193: -1.9 | L193: 372 7970
A194: 374 | B194: 7964 | C194: 7964 | D194: 796.4 | E194: -2.5 | L194: 374 7964
A195: 376 | B195: 7969 | C195: 7969 | D195: 796.9 | E195: -2 | L195: 376 7969
A196: 378 | B196: 7962 | C196: 7962 | D196: 796.2 | E196: -2.7 | L196: 378 7962
A197: 380 | B197: 7969 | C197: 7969 | D197: 796.9 | E197: -2 | L197: 380 7969
A198: 382 | B198: 7969 | C198: 7969 | D198: 796.9 | E198: -2 | L198: 382 7969
A199: 384 | B199: 7969 | C199: 7969 | D199: 796.9 | E199: -2 | L199: 384 7969
A200: 386 | B200: 7968 | C200: =B200 -> 7968 | D200: =IF(C200>1000,C200/10,C200) -> 796.8 | E200: =D200-D$7 -> -2.1 | L200: 386 7968
A201: 388 | B201: 7962 | C201: 7962 | D201: 796.2 | E201: -2.7 | L201: 388 7962
A202: 390 | B202: 7969 | C202: 7969 | D202: 796.9 | E202: -2 | L202: 390 7969
A203: 392 | B203: 7967 | C203: 7967 | D203: 796.7 | E203: -2.2 | L203: 392 7967
... 59 more rows
